{"text_format":"1","workbook":"xlsx","n_sheets":11,"sheets":["1","2","3","4","5","6","7","8","9","10","Consolidado"],"not_rendered":{"charts":0,"images":21,"macros":1,"external_links":0,"defined_names":13,"comments":6,"pivot_tables":0},"unopened":[],"bounds":{"document_bytes":16777216,"sheet_cells":100000,"rows_first":2000,"rows_last":500,"rows_between":2000,"halvings":0,"cell_chars":16384,"cell_head_chars":4096},"cells_cut":0,"cells_raw":0,"read":"whole","date_system":"1900"}

{"sheet":"1","index":0,"n_rows":13,"n_cols":4,"rows_kept":13,"cut":false,"hidden":false,"merged":[[0,0,1,0],[0,3,1,3]]}
["MENÚ",null,null,"XIII CONVOCATORIA A PROYECTOS DE INVESTIGACIÓN"]
[null,null,"1.- TIPO DE PROYECTO AL QUE APLICA"]
[]
[null,null,"PROYECTO TIPO"]
[]
[]
[null,null,"SI EL PROYECTO ES TIPO D COMPLETAR LO SIGUIENTE"]
[]
[null,null,"TÍTULO DEL PROYECTO CONCLUIDO "]
[]
[null,null,"CÓDIGO DEL PROYECTO CONCLUIDO"]
[]
[null,null,"FECHA FIN DEL PROYECTO CONCLUIDO"]

{"sheet":"2","index":1,"n_rows":30,"n_cols":3,"rows_kept":30,"cut":false,"hidden":true,"merged":[[0,0,1,0],[0,3,1,3]]}
["MENÚ"]
[null,null,"1.- DATOS GENERALES"]
[]
[null,null,"TÍTULO DEL PROYECTO"]
[]
[null,null,"FACULTAD/ESCUELA"]
[]
[null,null,"CARRERA"]
[]
[null,null,"GRUPO DE INVESTIGACIÓN"]
[]
[null,null,"DIRECTOR DEL PROYECTO"]
[]
[null,null,"DURACIÓN DEL PROYECTO"]
[]
[null,null,"PERMISOS"]
[]
[null,null,"RECIBE AYUDA EXTERNA"]
[]
[null,null,"INDIQUE LA INSTITUCIÓN"]
[]
[null,null,"PRESUPUESTO TOTAL DEL PROYECTO"]
[]
[null,null,"PRESUPUESTO FINANCIADO POR UDLA"]
[]
[null,null,"PRESUPUESTO FINANCIADO CON FONDOS EXTERNOS"]
[]
[null,null,"LÍNEA DE INVESTIGACIÓN"]
[]
[null,null,"ÁREA Y SUBÁREA DE CONOCIMIENTO DE ACUERDO A UNESCO"]

{"sheet":"3","index":2,"n_rows":4,"n_cols":3,"rows_kept":4,"cut":false,"hidden":true,"merged":[[0,0,1,0],[4,2,5,2]]}
["MENÚ"]
[null,null,"3.- RESUMEN DEL PROYECTO "]
[]
[null,null,"El resumen debe contener una visión general del proyecto, incluyendo una breve descripción de los antecedentes, los objetivos, de cómo éstos se llevarán a cabo, los resultados esperados, alcance e impacto del proyecto (máximo 350 palabras)."]

{"sheet":"4","index":3,"n_rows":70,"n_cols":6,"rows_kept":70,"cut":false,"hidden":true,"merged":[[0,0,1,0]]}
["MENÚ"]
[null,null,"4.-ANTECEDENTES E IMPORTANCIA DEL PROYECTO"]
[]
[null,null,"4.1. PROBLEMÁTICA"]
[]
[]
[null,null,"4.2. ESTADO DEL ARTE"]
[]
[null,null,"4.3. PERTINENCIA DE LA INVESTIGACIÓN"]
[]
[]
[null,null,"4.3.1.COBERTURA DE EJECUCIÓN DEL PROYECTO"]
[]
[null,null,"Especifique la razón"]
[]
[]
[null,null,"4.3.2. IMPACTO DEL PROYECTO"]
[]
[null,null,"Especifique la razón"]
[]
[null,null,"4.4. DESARROLLO DEL PROYECTO"]
[null,null,"4.4.1. OBJETIVO GENERAL "]
[]
[]
[null,null,"4.4.2. OBJETIVOS ESPECÍFICOS ","O.1. "]
[]
[null,null,null,"O.2  "]
[]
[null,null,null,"O.3 "]
[]
[null,null,null,"O.4 "]
[]
[null,null,"4.5. METODOLOGÍA"]
[]
[]
[null,null,"4.6. PLANIFICACIÓN DE ACTIVIDADES"]
[]
[null,null,"OBJETIVO ESPECÍFICO","ACTIVIDADES POR OBJETIVO","FECHA DE INICIO","FECHA FIN "]
[null,null,"O.1","A.1.1 "]
[null,null,"O.1","A.1.2 "]
[null,null,"O.1","A.1.3"]
[null,null,"O.1","A.1.4"]
[null,null,"O.2","A.2.1 "]
[null,null,"O.2","A.2.2"]
[null,null,"O.2","A.2.3"]
[null,null,"O.2","A.2.4"]
[null,null,"O.3","A.3.1"]
[null,null,"O.3","A.3.2 "]
[null,null,"O.3","A.3.3"]
[null,null,"O.3","A.3.4"]
[null,null,"O.4","A.4.1"]
[null,null,"O.4","A.4.2"]
[null,null,"O.4","A.4.3"]
[null,null,"O.4","A.4.4"]
[]
[null,null,"4.6.1.      RESULTADOS Y MEDIOS DE VERIFICACIÓN POR OBJETIVO ESPECÍFICO"]
[]
[null,null,"OBJETIVO ESPECÍFICO","RESULTADOS ESPERADOS","MEDIO DE VERIFICACIÓN O EVIDENCIAS ","ESTUDIANTES PREVISTOS"]
[null,null,"O.1"]
[null,null,"O.2"]
[null,null,"O.3"]
[null,null,"O.4"]
[]
[null,null,"4.6.2.      RIESGOS Y MEDIDA DE RESPUESTA POR OBJETIVO ESPECÍFICO"]
[]
[null,null,"OBJETIVO ESPECÍFICO","RIESGO","NIVEL","MEDIDA DE RESPUESTA"]
[null,null,"O.1"]
[null,null,"O.2"]
[null,null,"O.3"]
[null,null,"O.4"]

{"sheet":"5","index":4,"n_rows":14,"n_cols":9,"rows_kept":14,"cut":false,"hidden":true,"merged":[[0,0,1,0]]}
["MENÚ"]
[null,null,"5.- PLAN DE PUBLICACIONES"]
[]
[null,null,"NRO.","NOMBRE TENTATIVO DE LA PUBLICACIÓN/PATENTE","NOMBRE TENTATIVO DE REVISTA / EDITORIAL","NOMBRE DE LA BASE DE INDEXACIÓN DE LA REVISTA","SJR/IMPACT FACTOR DE LA REVISTA","CUARTIL DE LA REVISTA","MES DE ENVÍO"]
[null,null,"P.1."]
[null,null,"P.2."]
[null,null,"P.3."]
[null,null,"P.4."]
[null,null,"P.5."]
[null,null,"P.6."]
[null,null,"P.7."]
[null,null,"P.8."]
[null,null,"P.9."]
[null,null,"P.10."]

{"sheet":"6","index":5,"n_rows":67,"n_cols":3,"rows_kept":67,"cut":false,"hidden":true,"merged":[[0,0,1,0]]}
["MENÚ"]
[null,null,"6.- PERSONAL DEL PROYECTO"]
[]
[null,null,"6.1. DIRECTOR DEL PROYECTO"]
[]
[null,{"$f":"_Hlk113009435&\"_\"&C6","v":"6.1. DIRECTOR DEL PROYECTO_NOMBRES Y APELLIDOS"},"NOMBRES Y APELLIDOS"]
[]
[null,{"$f":"_Hlk113009435&\"_\"&C8","v":"6.1. DIRECTOR DEL PROYECTO_NÚMERO DE IDENTIFICACIÓN"},"NÚMERO DE IDENTIFICACIÓN"]
[]
[null,{"$f":"_Hlk113009435&\"_\"&C10","v":"6.1. DIRECTOR DEL PROYECTO_RESPONSABILIDADES"},"RESPONSABILIDADES"]
[]
[null,{"$f":"_Hlk113009435&\"_\"&C12","v":"6.1. DIRECTOR DEL PROYECTO_DEDICACIÓN MÁXIMA SEMANAL"},"DEDICACIÓN MÁXIMA SEMANAL"]
[]
[null,{"$f":"_Hlk113009435&\"_\"&C14","v":"6.1. DIRECTOR DEL PROYECTO_TIEMPO DE PARTICIPACIÓN EN MESES"},"TIEMPO DE PARTICIPACIÓN EN MESES"]
[]
[null,null,"6.2. DIRECTOR SUBROGANTE DEL PROYECTO"]
[]
[null,{"$f":"$C$16&\"_\"&C18","v":"6.2. DIRECTOR SUBROGANTE DEL PROYECTO_NOMBRES Y APELLIDOS"},"NOMBRES Y APELLIDOS"]
[]
[null,"6.2. DIRECTOR SUBROGANTE DEL PROYECTO_NÚMERO DE IDENTIFICACIÓN","NÚMERO DE IDENTIFICACIÓN"]
[]
[null,"6.2. DIRECTOR SUBROGANTE DEL PROYECTO_RESPONSABILIDADES","RESPONSABILIDADES"]
[]
[null,"6.2. DIRECTOR SUBROGANTE DEL PROYECTO_DEDICACIÓN MÁXIMA SEMANAL","DEDICACIÓN MÁXIMA SEMANAL"]
[]
[null,"6.2. DIRECTOR SUBROGANTE DEL PROYECTO_TIEMPO DE PARTICIPACIÓN","TIEMPO DE PARTICIPACIÓN"]
[]
[]
[null,{"$f":"C29&\"_\"&C29","v":"6.3. INVESTIGADORES ASOCIADOS Y AUXILIARES_6.3. INVESTIGADORES ASOCIADOS Y AUXILIARES"},"6.3. INVESTIGADORES ASOCIADOS Y AUXILIARES"]
[null,{"$f":"C30&\"_\"&C30","v":"_"}]
[null,{"$f":"$C$29&\"_\"&C31","v":"6.3. INVESTIGADORES ASOCIADOS Y AUXILIARES_NOMBRES Y APELLIDOS"},"NOMBRES Y APELLIDOS"]
[]
[null,{"$f":"$C$29&\"_\"&C33","v":"6.3. INVESTIGADORES ASOCIADOS Y AUXILIARES_NÚMERO DE IDENTIFICACIÓN"},"NÚMERO DE IDENTIFICACIÓN"]
[]
[null,{"$f":"$C$29&\"_\"&C35","v":"6.3. INVESTIGADORES ASOCIADOS Y AUXILIARES_RESPONSABILIDADES"},"RESPONSABILIDADES"]
[]
[null,{"$f":"$C$29&\"_\"&C37","v":"6.3. INVESTIGADORES ASOCIADOS Y AUXILIARES_DEDICACIÓN MÁXIMA SEMANAL"},"DEDICACIÓN MÁXIMA SEMANAL"]
[]
[null,{"$f":"$C$29&\"_\"&C39","v":"6.3. INVESTIGADORES ASOCIADOS Y AUXILIARES_TIEMPO DE PARTICIPACIÓN"},"TIEMPO DE PARTICIPACIÓN"]
[]
[null,{"$f":"$C$29&\"_\"&C41","v":"6.3. INVESTIGADORES ASOCIADOS Y AUXILIARES_FECHA INICIO"},"FECHA INICIO"]
[]
[null,{"$f":"$C$29&\"_\"&C43","v":"6.3. INVESTIGADORES ASOCIADOS Y AUXILIARES_FECHA FIN"},"FECHA FIN"]
[]
[]
[null,"6.4. TÉCNICOS DE LABORATORIO_6.4. TÉCNICOS DE LABORATORIO","6.4. TÉCNICOS DE LABORATORIO"]
[]
[null,{"$f":"$C$46&\"_\"&C48","v":"6.4. TÉCNICOS DE LABORATORIO_NOMBRES Y APELLIDOS"},"NOMBRES Y APELLIDOS"]
[]
[null,{"$f":"$C$46&\"_\"&C50","v":"6.4. TÉCNICOS DE LABORATORIO_NÚMERO DE IDENTIFICACIÓN"},"NÚMERO DE IDENTIFICACIÓN"]
[]
[null,{"$f":"$C$46&\"_\"&C52","v":"6.4. TÉCNICOS DE LABORATORIO_RESPONSABILIDADES"},"RESPONSABILIDADES"]
[]
[null,{"$f":"$C$46&\"_\"&C54","v":"6.4. TÉCNICOS DE LABORATORIO_DEDICACIÓN MÁXIMA SEMANAL"},"DEDICACIÓN MÁXIMA SEMANAL"]
[]
[null,{"$f":"$C$46&\"_\"&C56","v":"6.4. TÉCNICOS DE LABORATORIO_TIEMPO DE PARTICIPACIÓN"},"TIEMPO DE PARTICIPACIÓN"]
[]
[]
[null,"6.5. INVESTIGADORES EXTERNOS A LA UDLA_6.5. INVESTIGADORES EXTERNOS A LA UDLA","6.5. INVESTIGADORES EXTERNOS A LA UDLA"]
[]
[null,{"$f":"$C$59&\"_\"&C61","v":"6.5. INVESTIGADORES EXTERNOS A LA UDLA_NOMBRES Y APELLIDOS"},"NOMBRES Y APELLIDOS"]
[]
[null,{"$f":"$C$59&\"_\"&C63","v":"6.5. INVESTIGADORES EXTERNOS A LA UDLA_CORREO ELECTRÓNICO"},"CORREO ELECTRÓNICO"]
[]
[null,{"$f":"$C$59&\"_\"&C65","v":"6.5. INVESTIGADORES EXTERNOS A LA UDLA_INSTITUCIÓN O PAÍS"},"INSTITUCIÓN O PAÍS"]
[]
[null,{"$f":"$C$59&\"_\"&C67","v":"6.5. INVESTIGADORES EXTERNOS A LA UDLA_ACTIVIDADES A SU CARGO EN EL PROYECTO"},"ACTIVIDADES A SU CARGO EN EL PROYECTO"]

{"sheet":"7","index":6,"n_rows":8,"n_cols":3,"rows_kept":8,"cut":false,"hidden":true,"merged":[[0,0,1,0]]}
["MENÚ"]
[null,null,"7.- PRESUPUESTO Y PLAN DE TRABAJO "]
[]
[null,null,"Llenar en el archivo Excel de presupuesto detallado adjunto."]
[]
[null,null,"Justificar los valores adicionales requeridos, como: viajes técnicos, servicios, ediciones profesionales y todos los gastos solicitados en el anexo en excel. "]
[null,null,"5.1.                     JUSTIFICACIÓN DE GASTOS"]
[null,null,"En caso de no existir justificación, los rubros solicitados no serán considerados."]

{"sheet":"8","index":7,"n_rows":4,"n_cols":3,"rows_kept":4,"cut":false,"hidden":true,"merged":[[0,0,1,0]]}
["MENÚ"]
[null,null,"8.-  DEVOLUCIÓN DE RESULTADOS"]
[]
[null,{"$f":"$C$2&\"_\"&C4","v":"8.-  DEVOLUCIÓN DE RESULTADOS_Especifique"},"Especifique"]

{"sheet":"9","index":8,"n_rows":6,"n_cols":3,"rows_kept":6,"cut":false,"hidden":true,"merged":[[0,0,1,0]]}
["MENÚ"]
[null,null,"9.- VINCULACIÓN CON LA COLECTIVIDAD"]
[]
[null,{"$f":"_Toc455509477&\"_\"&C4","v":"9.- VINCULACIÓN CON LA COLECTIVIDAD_Señale si el proyecto tiene componentes de vinculación con la colectividad"},"Señale si el proyecto tiene componentes de vinculación con la colectividad"]
[]
[null,{"$f":"_Toc455509477&\"_\"&C6","v":"9.- VINCULACIÓN CON LA COLECTIVIDAD_Ha sido revisado/aprobado por la Coordinación de Vinculación con la Comunidad de la UDLA"},"Ha sido revisado/aprobado por la Coordinación de Vinculación con la Comunidad de la UDLA"]

{"sheet":"10","index":9,"n_rows":2,"n_cols":3,"rows_kept":2,"cut":false,"hidden":true,"merged":[[0,0,1,0]]}
["MENÚ"]
[null,null,"10.- REFERENCIAS"]

{"sheet":"Consolidado","index":10,"n_rows":2,"n_cols":67,"rows_kept":2,"cut":false,"hidden":true,"merged":[]}
[null,{"$f":"'1'!C4","v":"PROYECTO TIPO"},{"$f":"'1'!C9","v":"TÍTULO DEL PROYECTO CONCLUIDO "},{"$f":"'1'!C11","v":"CÓDIGO DEL PROYECTO CONCLUIDO"},{"$f":"'1'!C13","v":"FECHA FIN DEL PROYECTO CONCLUIDO"},{"$f":"'2'!C4","v":"TÍTULO DEL PROYECTO"},{"$f":"'2'!C6","v":"FACULTAD/ESCUELA"},{"$f":"'2'!C8","v":"CARRERA"},{"$f":"'2'!C10","v":"GRUPO DE INVESTIGACIÓN"},{"$f":"'2'!C12","v":"DIRECTOR DEL PROYECTO"},{"$f":"'2'!C14","v":"DURACIÓN DEL PROYECTO"},{"$f":"'2'!C16","v":"PERMISOS"},{"$f":"'2'!C18","v":"RECIBE AYUDA EXTERNA"},{"$f":"'2'!C20","v":"INDIQUE LA INSTITUCIÓN"},{"$f":"'2'!C22","v":"PRESUPUESTO TOTAL DEL PROYECTO"},{"$f":"'2'!C24","v":"PRESUPUESTO FINANCIADO POR UDLA"},{"$f":"'2'!C26","v":"PRESUPUESTO FINANCIADO CON FONDOS EXTERNOS"},{"$f":"'2'!C28","v":"LÍNEA DE INVESTIGACIÓN"},{"$f":"'2'!C30","v":"ÁREA Y SUBÁREA DE CONOCIMIENTO DE ACUERDO A UNESCO"},null,null,null,null,{"$f":"'3'!C2","v":"3.- RESUMEN DEL PROYECTO "},{"$f":"'4'!C4","v":"4.1. PROBLEMÁTICA"},{"$f":"'4'!_Toc455509458","v":"4.2. ESTADO DEL ARTE"},{"$f":"'4'!_Toc455509459","v":"4.3. PERTINENCIA DE LA INVESTIGACIÓN"},{"$f":"'4'!C12","v":"4.3.1.COBERTURA DE EJECUCIÓN DEL PROYECTO"},{"$f":"'4'!_Hlk130395979","v":"Especifique la razón"},{"$f":"'4'!C17","v":"4.3.2. IMPACTO DEL PROYECTO"},{"$f":"'4'!C19","v":"Especifique la razón"},{"$f":"'4'!C22","v":"4.4.1. OBJETIVO GENERAL "},"O.1","O.2","O.3","O.4","O.5",{"$f":"'4'!C33","v":"4.5. METODOLOGÍA"},{"$f":"'6'!B6","v":"6.1. DIRECTOR DEL PROYECTO_NOMBRES Y APELLIDOS"},{"$f":"'6'!B8","v":"6.1. DIRECTOR DEL PROYECTO_NÚMERO DE IDENTIFICACIÓN"},{"$f":"'6'!B10","v":"6.1. DIRECTOR DEL PROYECTO_RESPONSABILIDADES"},{"$f":"'6'!B12","v":"6.1. DIRECTOR DEL PROYECTO_DEDICACIÓN MÁXIMA SEMANAL"},{"$f":"'6'!B14","v":"6.1. DIRECTOR DEL PROYECTO_TIEMPO DE PARTICIPACIÓN EN MESES"},{"$f":"'6'!B18","v":"6.2. DIRECTOR SUBROGANTE DEL PROYECTO_NOMBRES Y APELLIDOS"},{"$f":"'6'!B20","v":"6.2. DIRECTOR SUBROGANTE DEL PROYECTO_NÚMERO DE IDENTIFICACIÓN"},{"$f":"'6'!B22","v":"6.2. DIRECTOR SUBROGANTE DEL PROYECTO_RESPONSABILIDADES"},{"$f":"'6'!B24","v":"6.2. DIRECTOR SUBROGANTE DEL PROYECTO_DEDICACIÓN MÁXIMA SEMANAL"},{"$f":"'6'!B26","v":"6.2. DIRECTOR SUBROGANTE DEL PROYECTO_TIEMPO DE PARTICIPACIÓN"},{"$f":"'6'!B31","v":"6.3. INVESTIGADORES ASOCIADOS Y AUXILIARES_NOMBRES Y APELLIDOS"},{"$f":"'6'!B33","v":"6.3. INVESTIGADORES ASOCIADOS Y AUXILIARES_NÚMERO DE IDENTIFICACIÓN"},{"$f":"'6'!B35","v":"6.3. INVESTIGADORES ASOCIADOS Y AUXILIARES_RESPONSABILIDADES"},{"$f":"'6'!B37","v":"6.3. INVESTIGADORES ASOCIADOS Y AUXILIARES_DEDICACIÓN MÁXIMA SEMANAL"},{"$f":"'6'!B39","v":"6.3. INVESTIGADORES ASOCIADOS Y AUXILIARES_TIEMPO DE PARTICIPACIÓN"},{"$f":"'6'!B41","v":"6.3. INVESTIGADORES ASOCIADOS Y AUXILIARES_FECHA INICIO"},{"$f":"'6'!B43","v":"6.3. INVESTIGADORES ASOCIADOS Y AUXILIARES_FECHA FIN"},{"$f":"'6'!B48","v":"6.4. TÉCNICOS DE LABORATORIO_NOMBRES Y APELLIDOS"},{"$f":"'6'!B50","v":"6.4. TÉCNICOS DE LABORATORIO_NÚMERO DE IDENTIFICACIÓN"},{"$f":"'6'!B52","v":"6.4. TÉCNICOS DE LABORATORIO_RESPONSABILIDADES"},{"$f":"'6'!B54","v":"6.4. TÉCNICOS DE LABORATORIO_DEDICACIÓN MÁXIMA SEMANAL"},{"$f":"'6'!B56","v":"6.4. TÉCNICOS DE LABORATORIO_TIEMPO DE PARTICIPACIÓN"},{"$f":"'6'!B61","v":"6.5. INVESTIGADORES EXTERNOS A LA UDLA_NOMBRES Y APELLIDOS"},{"$f":"'6'!B63","v":"6.5. INVESTIGADORES EXTERNOS A LA UDLA_CORREO ELECTRÓNICO"},{"$f":"'6'!B65","v":"6.5. INVESTIGADORES EXTERNOS A LA UDLA_INSTITUCIÓN O PAÍS"},{"$f":"'6'!B67","v":"6.5. INVESTIGADORES EXTERNOS A LA UDLA_ACTIVIDADES A SU CARGO EN EL PROYECTO"},{"$f":"'8'!B4","v":"8.-  DEVOLUCIÓN DE RESULTADOS_Especifique"},{"$f":"'9'!B4","v":"9.- VINCULACIÓN CON LA COLECTIVIDAD_Señale si el proyecto tiene componentes de vinculación con la colectividad"},{"$f":"'9'!B6","v":"9.- VINCULACIÓN CON LA COLECTIVIDAD_Ha sido revisado/aprobado por la Coordinación de Vinculación con la Comunidad de la UDLA"}]
[null,{"$f":"'1'!D4","v":0},{"$f":"'1'!D9","v":0},{"$f":"'1'!D11","v":0},{"$f":"'1'!D13","v":"00:00:00"},{"$f":"'2'!D4","v":0},{"$f":"'2'!D6","v":0},{"$f":"'2'!D8","v":0},{"$f":"'2'!D10","v":0},{"$f":"'2'!D12","v":0},{"$f":"'2'!D14","v":0},{"$f":"'2'!D16","v":0},{"$f":"'2'!D18","v":0},{"$f":"'2'!D20","v":0},{"$f":"'2'!D22","v":0},{"$f":"'2'!D24","v":0},{"$f":"'2'!D26","v":0},{"$f":"'2'!D28","v":0},{"$f":"'2'!D30","v":0},{"$f":"'2'!D32","v":0},{"$f":"'2'!D34","v":0},{"$f":"'2'!D36","v":0},{"$f":"'2'!D38","v":0},{"$f":"'3'!C6","v":0},{"$f":"'4'!D4","v":0},{"$f":"'4'!D7","v":0},{"$f":"'4'!D9","v":0},{"$f":"'4'!D12","v":0},{"$f":"'4'!D14","v":0},{"$f":"'4'!D17","v":0},{"$f":"'4'!D19","v":0},{"$f":"'4'!D22","v":0},{"$f":"'4'!D25","v":"O.1. "},{"$f":"'4'!D27","v":"O.2  "},{"$f":"'4'!D29","v":"O.3 "},{"$f":"'4'!D31","v":"O.4 "},{"$f":"'4'!D33","v":0},{"$f":"'4'!D33","v":0},{"$f":"'6'!D6","v":0},{"$f":"'6'!D8","v":0},{"$f":"'6'!D10","v":0},{"$f":"'6'!D12","v":0},{"$f":"'6'!D14","v":0},{"$f":"'6'!D18","v":0},{"$f":"'6'!D20","v":0},{"$f":"'6'!D22","v":0},{"$f":"'6'!D24","v":0},{"$f":"'6'!D26","v":0},{"$f":"'6'!D31","v":0},{"$f":"'6'!D33","v":0},{"$f":"'6'!D35","v":0},{"$f":"'6'!D37","v":0},{"$f":"'6'!D39","v":0},{"$f":"'6'!D41","v":0},{"$f":"'6'!D43","v":0},{"$f":"'6'!D48","v":0},{"$f":"'6'!D50","v":0},{"$f":"'6'!D52","v":0},{"$f":"'6'!D54","v":0},{"$f":"'6'!D56","v":0},{"$f":"'6'!D61","v":0},{"$f":"'6'!D63","v":0},{"$f":"'6'!D65","v":0},{"$f":"'6'!D67","v":0},{"$f":"'8'!D4","v":0},{"$f":"'9'!D4","v":0},{"$f":"'9'!D6","v":0}]